fUSD/lending_fUSD_20240214
["ID","MTS","AMOUNT","RATE_DAILY","PERIOD"]
[314040824,1707945043799,-405.27,0.000356,3]
[314040825,1707945043808,-405.27,0.000356,3]
[314040826,1707945043818,-405.27,0.000356,3]
[314040827,1707945043826,-405.27,0.000356,3]
[314040828,1707945043835,-405.27,0.000356,3]
[314040829,1707945043847,-405.27,0.000356,3]
[314040830,1707945043858,-405.27,0.000356,3]
[314040831,1707945043869,-405.27,0.000356,3]
[314040832,1707945043879,-405.27,0.000356,3]
[314040833,1707945043889,-405.27,0.000356,3]
[314040834,1707945043899,-405.27,0.000356,3]
[314040835,1707945043909,-405.27,0.000356,3]
[314040836,1707945043918,-405.27,0.000356,3]
[314040837,1707945043927,-405.27,0.000356,3]
[314040838,1707945043939,-405.27,0.000356,3]
[314040839,1707945043949,-405.27,0.000356,3]
[314040840,1707945043960,-4000.0,0.000356,2]
[314040841,1707945043971,-151.0,0.00035614,7]
[314040842,1707945043982,-500.0,0.00035616,2]
[314040843,1707945043992,-500.0,0.00035616,2]
[314040844,1707945044001,-500.0,0.00035616,2]
[314040845,1707945044010,-500.0,0.00035616,2]
[314040846,1707945044021,-500.0,0.00035616,2]
[314040847,1707945044031,-500.0,0.00035616,2]
[314040848,1707945044042,-500.0,0.00035616,2]
[314040849,1707945044051,-500.0,0.00035616,2]
[314040850,1707945044062,-500.0,0.00035616,2]
[314040851,1707945044073,-500.0,0.00035616,2]
[314040852,1707945044084,-500.0,0.00035616,2]
[314040853,1707945044093,-500.0,0.00035616,2]
[314040854,1707945044103,-500.0,0.00035616,2]
[314040855,1707945044112,-500.0,0.00035616,2]
[314040856,1707945044121,-500.0,0.00035616,2]
[314040857,1707945044131,-500.0,0.00035616,2]
[314040858,1707945044141,-500.0,0.00035616,2]
[314040859,1707945044155,-500.0,0.00035616,2]
[314040860,1707945044166,-500.0,0.00035616,2]
[314040861,1707945044176,-500.0,0.00035616,2]
[314040862,1707945044185,-449.06692491,0.00035616,7]
[314040863,1707945044195,-500.0,0.00035616,7]
[314040864,1707945044204,-556.75,0.00035616,7]
[314040865,1707945044213,-586.75,0.00035616,7]
[314040866,1707945044222,-799.09,0.00035616,7]
[314040867,1707945044231,-500.0,0.00035616,7]
[314040868,1707945044241,-500.0,0.00035616,7]
[314040869,1707945044251,-500.0,0.00035616,7]
[314040870,1707945044263,-500.0,0.00035616,7]
[314040871,1707945044273,-899.57,0.00035616,7]
[314040872,1707945044283,-500.0,0.00035616,7]
[314040873,1707945044292,-500.0,0.00035616,7]
[314040874,1707945044301,-520.9447256,0.00035616,7]
[314040875,1707945044310,-500.0,0.00035616,7]
[314040876,1707945044319,-2544.37,0.00035616,7]
[314040877,1707945044329,-500.0,0.00035616,7]
[314040878,1707945044339,-500.0,0.00035616,7]
[314040879,1707945044350,-647.67,0.00035616,7]
[314040880,1707945044359,-500.0,0.00035616,7]
[314040881,1707945044368,-500.0,0.00035616,7]
[314040882,1707945044378,-500.0,0.00035616,7]
[314040883,1707945044387,-530.15109709,0.00035616,7]
[314040884,1707945044396,-500.0,0.00035616,7]
[314040885,1707945044406,-500.0,0.00035616,7]
[314040886,1707945044415,-500.0,0.00035616,7]
[314040887,1707945044424,-547.28639944,0.00035616,7]
[314040888,1707945044433,-558.18,0.00035616,7]
[314040889,1707945044443,-500.0,0.00035616,7]
[314040890,1707945044452,-500.0,0.00035616,7]
[314040891,1707945044461,-694.58,0.00035616,7]
[314040892,1707945044470,-500.0,0.00035616,2]
[314040893,1707945044479,-500.0,0.00035616,7]
[314040894,1707945044491,-1144.53,0.00035616,7]
[314040895,1707945044500,-500.0,0.00035616,7]
[314040896,1707945044510,-500.0,0.00035616,7]
[314040897,1707945044519,-522.17797962,0.00035616,7]
[314040898,1707945044528,-500.0,0.00035616,7]
[314040899,1707945044538,-500.0,0.00035616,7]
[314040900,1707945044547,-500.0,0.00035616,7]
[314040901,1707945044556,-500.0,0.00035616,7]
[314040902,1707945044565,-500.0,0.00035616,7]
[314040903,1707945044574,-3424.69,0.00035616,7]
[314040904,1707945044584,-818.43,0.00035616,7]
[314040905,1707945044593,-5392.04,0.00035616,7]
[314040906,1707945044602,-503.92,0.00035616,7]
[314040907,1707945044612,-500.0,0.00035616,7]
[314040908,1707945044621,-906.19,0.00035616,7]
[314040909,1707945044630,-500.0,0.00035616,7]
[314040910,1707945044639,-500.0,0.00035616,7]
[314040911,1707945044648,-549.23,0.00035616,7]
[314040912,1707945044657,-500.0,0.00035616,7]
[314040913,1707945044666,-500.0,0.00035616,7]
[314040914,1707945044676,-500.0,0.00035616,7]
[314040915,1707945044830,-500.0,0.00035616,7]
[314040916,1707945044841,-500.0,0.00035616,7]
[314040917,1707945044850,-822.06,0.00035616,7]
[314040918,1707945044860,-3341.45,0.00035616,7]
[314040919,1707945044869,-500.0,0.00035616,7]
[314040920,1707945044879,-500.0,0.00035616,7]
[314040921,1707945044889,-500.0,0.00035616,7]
[314040922,1707945044899,-677.12,0.00035616,7]
[314040923,1707945044908,-500.0,0.00035616,7]
[314040924,1707945044917,-500.0,0.00035616,7]
[314040925,1707945044926,-1761.82,0.00035616,7]
[314040926,1707945044938,-609.74,0.00035616,7]
[314040927,1707945044957,-500.0,0.00035616,7]
[314040928,1707945044968,-802.92,0.00035616,7]
[314040929,1707945044978,-500.0,0.00035616,7]
[314040930,1707945044987,-500.0,0.00035616,7]
[314040931,1707945044998,-500.0,0.00035616,7]
[314040932,1707945045007,-2731.74,0.00035616,7]
[314040933,1707945045017,-500.0,0.00035616,7]
[314040934,1707945045027,-500.0,0.00035616,7]
[314040935,1707945045036,-500.0,0.00035616,7]
[314040936,1707945045047,-13582.07,0.00035616,7]
[314040937,1707945045058,-500.0,0.00035616,7]
[314040938,1707945045069,-500.0,0.00035616,7]
[314040939,1707945045080,-500.0,0.00035616,7]
[314040940,1707945045090,-500.0,0.00035616,7]
[314040941,1707945045101,-558.66494519,0.00035616,7]
[314040942,1707945045110,-500.0,0.00035616,7]
[314040943,1707945045121,-500.0,0.00035616,7]
[314040944,1707945045130,-500.0,0.00035616,7]
[314040945,1707945045139,-1485.39,0.00035616,7]
[314040946,1707945045148,-953.89,0.00035616,7]
[314040947,1707945045158,-500.0,0.00035616,7]
[314040948,1707945045167,-513.07,0.00035616,7]
[314040949,1707945045176,-6234.22,0.00035616,7]
[314040950,1707945045185,-500.0,0.00035616,7]
[314040951,1707945045194,-500.0,0.00035616,7]
[314040952,1707945045204,-500.0,0.00035616,7]
[314040953,1707945045214,-211.66503246,0.00035616,7]
[314040954,1707945045223,-500.0,0.00035616,7]
[314040955,1707945045232,-500.0,0.00035616,7]
[314040956,1707945045242,-586.78,0.00035616,7]
[314040957,1707945045251,-240.20516834,0.00035616,7]
[314040958,1707945045261,-500.0,0.00035616,7]
[314040959,1707945045271,-500.0,0.00035616,7]
[314040960,1707945045281,-500.0,0.00035616,7]
[314040961,1707945045290,-1606.08,0.00035616,7]
[314040962,1707945045299,-500.0,0.00035616,7]
[314040963,1707945045309,-500.0,0.00035616,7]
[314040964,1707945045318,-595.12,0.00035616,7]
[314040965,1707945045330,-537.9645044,0.00035616,7]
[314040966,1707945045340,-500.0,0.00035616,7]
[314040967,1707945045350,-500.0,0.00035616,7]
[314040968,1707945045360,-500.0,0.00035616,7]
[314040969,1707945045370,-1047.58,0.00035616,7]
[314040970,1707945045380,-500.0,0.00035616,7]
[314040971,1707945045390,-3281.1,0.00035616,7]
[314040972,1707945045401,-681.83,0.00035616,7]
[314040973,1707945045411,-500.0,0.00035616,7]
[314040974,1707945045421,-1810.87,0.00035616,7]
[314040975,1707945045430,-500.0,0.00035616,7]
[314040976,1707945045441,-515.63,0.00035616,7]
[314040977,1707945045452,-500.0,0.00035616,7]
[314040979,1707945045462,-805.31,0.00035616,7]
[314040981,1707945045472,-500.0,0.00035616,7]
[314040982,1707945045482,-500.0,0.00035616,7]
[314040983,1707945045491,-603.11,0.00035616,7]
[314040984,1707945045500,-500.0,0.00035616,7]
[314040985,1707945045510,-500.0,0.00035616,7]
[314040987,1707945045519,-500.0,0.00035616,7]
[314040988,1707945045529,-500.0,0.00035616,7]
[314040989,1707945045538,-500.0,0.00035616,7]
[314040990,1707945045547,-500.0,0.00035616,7]
[314040991,1707945045557,-2047.91,0.00035616,7]
[314040992,1707945045566,-500.0,0.00035616,7]
[314040993,1707945045575,-841.02,0.00035616,7]
[314040995,1707945045584,-500.0,0.00035616,7]
[314040996,1707945045594,-662.19,0.00035616,7]
[314040997,1707945045603,-780.8,0.00035616,7]
[314040998,1707945045612,-540.52002048,0.00035616,7]
[314041000,1707945045621,-1486.64,0.00035616,7]
[314041001,1707945045630,-2858.66,0.00035616,7]
[314041004,1707945045639,-500.0,0.00035616,7]
[314041005,1707945045648,-500.0,0.00035616,7]
[314041007,1707945045657,-500.0,0.00035616,7]
[314041010,1707945045667,-500.0,0.00035616,7]
[314041011,1707945045676,-590.33,0.00035616,7]
[314041014,1707945045685,-387.90135178,0.00035616,7]
[314041016,1707945045695,-500.0,0.00035616,7]
[314041018,1707945045704,-500.0,0.00035616,7]
[314041020,1707945045713,-786.93,0.00035616,7]
[314041022,1707945045723,-500.0,0.00035616,7]
[314041023,1707945045732,-500.0,0.00035616,7]
[314041026,1707945045742,-543.4365373,0.00035616,7]
[314041027,1707945045751,-504.84264657,0.00035616,7]
[314041029,1707945045760,-577.68,0.00035616,7]
[314041031,1707945045770,-500.0,0.00035616,7]
[314041032,1707945045779,-4757.12,0.00035616,7]
[314041033,1707945045788,-3628.12,0.00035616,7]
[314041034,1707945045797,-568.66676461,0.00035616,7]
[314041035,1707945045806,-598.4,0.00035616,7]
[314041036,1707945045815,-1991.03,0.00035616,7]
[314041037,1707945045824,-612.33,0.00035616,2]
[314041038,1707945045833,-500.0,0.00035616,7]
[314041039,1707945045842,-516.34590023,0.00035616,7]
[314041040,1707945045851,-500.0,0.00035616,7]
[314041041,1707945045861,-500.0,0.00035616,7]
[314041042,1707945045870,-500.0,0.00035616,7]
[314041043,1707945045879,-500.0,0.00035616,7]
[314041044,1707945045888,-500.0,0.00035616,7]
[314041045,1707945045898,-617.82,0.00035616,7]
[314041046,1707945045907,-547.51377987,0.00035616,7]
[314041047,1707945045916,-502.43,0.00035616,7]
[314041048,1707945045925,-2139.36,0.00035616,7]
[314041049,1707945045935,-807.41,0.00035616,7]
[314041050,1707945045946,-685.44,0.00035616,7]
[314041051,1707945045956,-500.0,0.00035616,7]
[314041052,1707945045965,-500.0,0.00035616,7]
[314041053,1707945045974,-508.9024747,0.00035616,7]
[314041054,1707945045985,-2211.07,0.00035616,7]
[314041055,1707945045995,-730.2,0.00035616,7]
[314041056,1707945046006,-500.0,0.00035616,7]
[314041057,1707945046016,-500.0,0.00035616,7]
[314041058,1707945046026,-711.33,0.00035616,7]
[314041059,1707945046036,-500.0,0.00035616,7]
[314041060,1707945046047,-500.0,0.00035616,7]
[314041061,1707945046058,-743.99,0.00035616,7]
[314041062,1707945046067,-2294.91,0.00035616,7]
[314041063,1707945046077,-2043.37,0.00035616,7]
[314041064,1707945046087,-500.0,0.00035616,7]
[314041065,1707945046096,-500.0,0.00035616,7]
[314041066,1707945046105,-500.0,0.00035616,7]
[314041067,1707945046115,-500.0,0.00035616,7]
[314041068,1707945046124,-594.55,0.00035616,7]
[314041069,1707945046133,-500.0,0.00035616,7]
[314041070,1707945046142,-500.0,0.00035616,7]
[314041071,1707945046152,-508.10406833,0.00035616,7]
[314041072,1707945046161,-6637.56,0.00035616,7]
[314041073,1707945046170,-500.0,0.00035616,7]
[314041074,1707945046179,-500.0,0.00035616,7]
[314041075,1707945046190,-500.0,0.00035616,7]
[314041076,1707945046199,-500.0,0.00035616,7]
[314041077,1707945046208,-500.0,0.00035616,7]
[314041078,1707945046217,-500.0,0.00035616,7]
[314041079,1707945046226,-500.0,0.00035616,7]
[314041080,1707945046235,-204.06579292,0.00035616,7]
[314041081,1707945046244,-1343.45,0.00035616,7]
[314041083,1707945046254,-1215.55,0.00035616,7]
[314041085,1707945046263,-1240.3,0.00035616,7]
[314041087,1707945046272,-595.97,0.00035616,7]
[314041089,1707945046282,-1485.75800005,0.00035616,7]
[314041090,1707945046307,-345.26199995,0.00035616,7]
[314041091,1707945046317,-500.0,0.00035616,7]
[314041092,1707945046327,-500.0,0.00035616,7]
[314041093,1707945046336,-1575.34,0.00035616,7]
[314041094,1707945046346,-500.0,0.00035616,7]
[314041095,1707945046355,-1000.0,0.00035616,7]
[314041096,1707945046364,-500.0,0.00035616,7]
[314041097,1707945046374,-1949.84,0.00035616,7]
[314041098,1707945046383,-500.0,0.00035616,7]
[314041099,1707945046393,-500.0,0.00035616,7]
[314041100,1707945046403,-500.0,0.00035616,7]
[314041101,1707945046412,-500.0,0.00035616,7]
[314041102,1707945046421,-500.0,0.00035616,7]
[314041103,1707945046430,-1376.91,0.00035616,7]
[314041104,1707945046440,-1838.93,0.00035616,7]
[314041105,1707945046449,-500.0,0.00035616,7]
[314041106,1707945046458,-500.0,0.00035616,7]
[314041107,1707945046468,-500.0,0.00035616,7]
[314041108,1707945046477,-1020.07,0.00035616,7]
[314041109,1707945046487,-526.91558944,0.00035616,7]
[314041110,1707945046499,-500.0,0.00035616,7]
[314041111,1707945046510,-500.0,0.00035616,7]
[314041112,1707945046520,-500.0,0.00035616,7]
[314041113,1707945046530,-500.0,0.00035616,7]
[314041114,1707945046540,-1264.88,0.00035616,7]
[314041115,1707945046550,-500.0,0.00035616,7]
[314041116,1707945046560,-500.0,0.00035616,7]
[314041117,1707945046571,-4521.24,0.00035616,7]
[314041118,1707945046580,-791.66,0.00035616,7]
[314041119,1707945046589,-4808.1,0.00035616,7]
[314041120,1707945046599,-500.0,0.00035616,7]
[314041121,1707945046608,-500.0,0.00035616,7]
[314041122,1707945046618,-566.80154629,0.00035616,7]
[314041123,1707945046628,-1751.89,0.00035616,7]
[314041124,1707945046637,-500.0,0.00035616,7]
[314041125,1707945046646,-660.03,0.00035616,7]
[314041126,1707945046656,-500.0,0.00035616,7]
[314041127,1707945046665,-500.0,0.00035616,7]
[314041128,1707945046674,-88.0511155,0.00035616,7]
[314041129,1707945046687,-330.96,0.00035616,7]
[314041130,1707945046709,-80.9888845,0.00035616,7]
[314041131,1707945046719,-665.94,0.00035616,7]
[314041132,1707945046729,-556.86435916,0.00035616,7]
[314041133,1707945046742,-163.65564084,0.00035616,7]
[314041134,1707945046753,-1079.62630897,0.00035616,7]
[314041135,1707945046766,-331.47369103,0.00035616,7]
[314041136,1707945046775,-1028.68,0.00035616,7]
[314041137,1707945046785,-215.9528121,0.00035616,7]
[314041138,1707945046932,-500.0,0.0003493,2]
[314041139,1707945046943,-80.4,0.00035,2]
[314041140,1707945046955,-1925.52995797,0.00035,2]
[314041141,1707945046968,-402.12299413,0.00035,2]
[314041142,1707945047803,-211.29114182,0.0003394,2]
[314041143,1707945047812,-1248.59059928,0.0003479,2]
[314041144,1707945047840,-293.7174423,0.0003479,2]
[314041145,1707945047856,-582.17636691,0.0003479,2]
[314041146,1707945047868,-16596.90230677,0.0003479,2]
[314041147,1707945047878,-500.0,0.0003493,2]
[314041148,1707945047887,-500.0,0.0003493,2]
[314041149,1707945047896,-500.0,0.0003493,2]
[314041150,1707945047906,-500.0,0.0003493,2]
[314041151,1707945047915,-500.0,0.0003493,2]
[314041152,1707945047924,-500.0,0.0003493,2]
[314041153,1707945047934,-500.0,0.0003493,2]
[314041154,1707945047946,-500.0,0.0003493,2]
[314041155,1707945047955,-107.01534499,0.00035,2]
[314041156,1707945047964,-2515.06829709,0.00035,2]
[314041157,1707945047973,-2515.06829709,0.00035,2]
[314041158,1707945047983,-2515.06829709,0.00035,2]
[314041159,1707945047992,-1785.67338167,0.00035,2]
[314041160,1707945048397,-486.046,0.00035,2]
[314041161,1707945048671,-500.0,0.0003493,2]
[314041162,1707945048681,-500.0,0.0003493,2]
[314041163,1707945048690,-243.34891542,0.00035,2]
[314041164,1707945048699,-2515.06829709,0.00035,2]
[314041165,1707945048708,-2515.06829709,0.00035,2]
[314041166,1707945048717,-2515.06829709,0.00035,2]
[314041167,1707945048726,-2515.06829709,0.00035,2]
[314041168,1707945048735,-284.0471879,0.00035616,7]
[314041169,1707945048744,-500.0,0.00035616,7]
[314041170,1707945048753,-1101.95,0.00035616,7]
[314041171,1707945048762,-500.0,0.00035616,7]
[314041172,1707945048771,-633.08,0.00035616,7]
[314041173,1707945048781,-679.4,0.00035616,7]
[314041174,1707945048789,-500.0,0.00035616,7]
[314041175,1707945048799,-1588.43,0.00035616,7]
[314041176,1707945048808,-500.0,0.00035616,7]
[314041177,1707945048817,-500.0,0.00035616,7]
[314041178,1707945048826,-859.31,0.00035616,7]
[314041179,1707945048836,-500.0,0.00035616,7]
[314041180,1707945048846,-570.05,0.00035616,7]
[314041181,1707945048855,-2455.03,0.00035616,7]
[314041182,1707945048864,-217.65681922,0.00035616,7]
[314041183,1707945048873,-500.0,0.00035616,7]
[314041184,1707945048882,-500.0,0.00035616,7]
[314041185,1707945048891,-500.0,0.00035616,7]
[314041186,1707945048900,-182.72561332,0.00035616,7]
[314041187,1707945048909,-6828.37,0.00035616,7]
[314041188,1707945048918,-500.0,0.00035616,7]
[314041189,1707945048927,-500.0,0.00035616,7]
[314041190,1707945048937,-500.0,0.00035616,7]
[314041191,1707945048950,-7718.39,0.00035616,7]
[314041192,1707945048960,-528.72155852,0.00035616,7]
[314041193,1707945048970,-500.0,0.00035616,7]
[314041194,1707945048980,-500.0,0.00035616,7]
[314041195,1707945048989,-500.0,0.00035616,7]
[314041196,1707945048998,-500.0,0.00035616,7]
[314041197,1707945049007,-730.4,0.00035616,7]
[314041198,1707945049016,-500.0,0.00035616,7]
[314041199,1707945049026,-1547.02,0.00035616,7]
[314041200,1707945049035,-552.36598104,0.00035616,7]
[314041201,1707945049044,-500.0,0.00035616,7]
[314041202,1707945049053,-1211.6,0.00035616,7]
[314041203,1707945049064,-500.0,0.00035616,7]
[314041204,1707945049073,-500.0,0.00035616,7]
[314041205,1707945049082,-500.0,0.00035616,7]
[314041206,1707945049093,-500.0,0.00035616,7]
[314041207,1707945049102,-592.22,0.00035616,7]
[314041208,1707945049111,-500.0,0.00035616,7]
[314041209,1707945049282,-500.0,0.00035616,7]
[314041210,1707945049292,-515.89459258,0.00035616,7]
[314041211,1707945049301,-1187.29,0.00035616,7]
[314041212,1707945049310,-6862.69,0.00035616,7]
[314041213,1707945049320,-1752.35,0.00035616,7]
[314041214,1707945049329,-500.0,0.00035616,7]
[314041215,1707945049339,-500.0,0.00035616,7]
[314041216,1707945049349,-565.71,0.00035616,7]
[314041217,1707945049358,-551.53,0.00035616,7]
[314041218,1707945049367,-500.0,0.00035616,7]
[314041219,1707945049377,-531.58032823,0.00035616,7]
[314041220,1707945049386,-500.0,0.00035616,7]
[314041221,1707945049395,-500.0,0.00035616,7]
[314041222,1707945049404,-828.25,0.00035616,7]
[314041223,1707945049413,-500.0,0.00035616,7]
[314041224,1707945049422,-546.18025448,0.00035616,7]
[314041225,1707945049431,-541.14104594,0.00035616,7]
[314041226,1707945049440,-500.0,0.00035616,7]
[314041227,1707945049449,-440.38305974,0.00035616,7]
[314041228,1707945049458,-865.42,0.00035616,7]
[314041229,1707945049467,-500.0,0.00035616,7]
[314041230,1707945049476,-1003.79,0.00035616,7]
[314041231,1707945049485,-500.0,0.00035616,7]
[314041232,1707945049494,-5366.99,0.00035616,7]
[314041233,1707945049503,-1623.54,0.00035616,7]
[314041234,1707945049512,-500.0,0.00035616,7]
[314041235,1707945049521,-1200.22,0.00035616,7]
[314041236,1707945049530,-500.0,0.00035616,7]
[314041237,1707945049541,-1014.56,0.00035616,7]
[314041238,1707945049550,-558.49,0.00035616,7]
[314041239,1707945049559,-548.17803556,0.00035616,7]
[314041240,1707945049569,-500.0,0.00035616,7]
[314041241,1707945049578,-500.0,0.00035616,7]
[314041242,1707945049588,-500.0,0.00035616,7]
[314041243,1707945049599,-500.0,0.00035616,7]
[314041244,1707945049609,-513.14023304,0.00035616,7]
[314041245,1707945049619,-500.0,0.00035616,7]
[314041246,1707945049630,-500.0,0.00035616,7]
[314041247,1707945049639,-995.34,0.00035616,7]
[314041248,1707945049648,-519.76597054,0.00035616,7]
[314041249,1707945049658,-500.0,0.00035616,7]
[314041250,1707945049667,-500.0,0.00035616,7]
[314041251,1707945049676,-500.0,0.00035616,7]
[314041252,1707945049685,-746.35,0.00035616,7]
[314041253,1707945049695,-1044.44,0.00035616,7]
[314041254,1707945049704,-500.0,0.00035616,7]
[314041255,1707945049713,-501.11,0.00035616,7]
[314041256,1707945049723,-500.0,0.00035616,7]
[314041257,1707945049731,-1716.87,0.00035616,7]
[314041258,1707945049741,-587.47,0.00035616,7]
[314041259,1707945049750,-1848.23,0.00035616,7]
[314041260,1707945049759,-1168.36,0.00035616,7]
[314041261,1707945049768,-500.0,0.00035616,7]
[314041262,1707945049778,-2233.44,0.00035616,7]
[314041263,1707945049787,-536.36961329,0.00035616,7]
[314041264,1707945049797,-500.0,0.00035616,7]
[314041265,1707945049807,-500.0,0.00035616,7]
[314041266,1707945049818,-500.0,0.00035616,7]
[314041267,1707945049828,-500.0,0.00035616,7]
[314041268,1707945049837,-983.47,0.00035616,7]
[314041269,1707945049847,-580.91,0.00035616,7]
[314041270,1707945049858,-500.0,0.00035616,7]
[314041271,1707945049867,-826.29,0.00035616,7]
[314041272,1707945049876,-250.0,0.00035616,7]
[314041273,1707945049887,-972.52,0.00035616,7]
[314041274,1707945049898,-500.0,0.00035616,7]
[314041275,1707945049907,-500.0,0.00035616,7]
[314041276,1707945049917,-898.19,0.00035616,7]
[314041277,1707945049927,-500.0,0.00035616,7]
[314041278,1707945049937,-500.0,0.00035616,7]
[314041279,1707945049950,-500.0,0.00035616,7]
[314041280,1707945049960,-500.0,0.00035616,7]
[314041281,1707945049969,-500.0,0.00035616,7]
[314041282,1707945049978,-2032.9,0.00035616,7]
[314041283,1707945049989,-500.0,0.00035616,7]
[314041284,1707945050000,-500.0,0.00035616,7]
[314041285,1707945050009,-500.0,0.00035616,7]
[314041286,1707945050021,-778.33,0.00035616,7]
[314041287,1707945050030,-500.0,0.00035616,7]
[314041288,1707945050039,-7693.98,0.00035616,7]
[314041289,1707945050049,-390.44697254,0.00035616,7]
[314041290,1707945050058,-500.0,0.00035616,7]
[314041291,1707945050068,-549.58671239,0.00035616,7]
[314041292,1707945050078,-500.0,0.00035616,7]
[314041293,1707945050088,-500.0,0.00035616,7]
[314041294,1707945050099,-500.0,0.00035616,7]
[314041295,1707945050109,-500.0,0.00035616,7]
[314041296,1707945050119,-647.49,0.00035616,7]
[314041297,1707945050129,-551.52,0.00035616,7]
[314041298,1707945050139,-500.0,0.00035616,7]
[314041299,1707945050149,-500.0,0.00035616,7]
[314041300,1707945050158,-500.0,0.00035616,7]
[314041301,1707945050168,-500.0,0.00035616,7]
[314041302,1707945050177,-500.0,0.00035616,7]
[314041303,1707945050187,-3552.29,0.00035616,7]
[314041304,1707945050196,-500.0,0.00035616,7]
[314041305,1707945050206,-3310.79,0.00035616,7]
[314041306,1707945050215,-630.27,0.00035616,7]
[314041307,1707945050225,-564.62529154,0.00035616,7]
[314041308,1707945050235,-500.0,0.00035616,7]
[314041309,1707945050245,-569.11,0.00035616,7]
[314041310,1707945050254,-1313.58,0.00035616,7]
[314041311,1707945050264,-500.0,0.00035616,7]
[314041312,1707945050274,-500.0,0.00035616,7]
[314041313,1707945050284,-500.0,0.00035616,7]
[314041314,1707945050294,-500.0,0.00035616,7]
[314041315,1707945050304,-505.08131716,0.00035616,7]
[314041316,1707945050314,-368.81742913,0.00035616,2]
[314041317,1707945050324,-158.3,0.00035616,2]
[314041318,1707945050333,-8639.22174616,0.00035694,2]
[314041319,1707945050353,-419.04,0.000357,2]
[314041320,1707945050370,-1517.90732,0.000357,2]
[314041321,1707945050385,-151.021514,0.00035748,14]
[314041322,1707945050404,-1808.2,0.00035751,2]
[314041323,1707945050421,-8096.0,0.00035798,2]
[314041324,1707945050436,-500.0,0.0003589,7]
[314041325,1707945050451,-556.75,0.0003589,7]
[314041326,1707945050469,-586.75,0.0003589,7]
[314041327,1707945050483,-799.09,0.0003589,7]
[314041328,1707945050501,-500.0,0.0003589,7]
[314041329,1707945050517,-500.0,0.0003589,7]
[314041330,1707945050531,-899.57,0.0003589,7]
[314041331,1707945050548,-502.67403989,0.0003589,7]
[314041332,1707945050566,-500.0,0.0003589,7]
[314041333,1707945050583,-500.0,0.0003589,7]
[314041334,1707945050595,-500.0,0.0003589,7]
[314041335,1707945050609,-2544.37,0.0003589,7]
[314041336,1707945050623,-516.24432034,0.0003589,7]
[314041337,1707945050638,-500.0,0.0003589,7]
[314041338,1707945050650,-647.67,0.0003589,7]
[314041339,1707945050664,-500.0,0.0003589,7]
[314041340,1707945050677,-500.0,0.0003589,7]
[314041341,1707945050693,-500.0,0.0003589,7]
[314041342,1707945050707,-500.0,0.0003589,7]
[314041343,1707945050721,-558.18,0.0003589,7]
[314041344,1707945050735,-500.0,0.0003589,7]
[314041345,1707945050749,-694.58,0.0003589,7]
[314041346,1707945050762,-500.0,0.0003589,2]
[314041347,1707945050776,-500.0,0.0003589,7]